Workbook

Sheet Sheet1
C8: Applications for Special Community Mobility Funding in 2014 | G8: 2013-10-03
C10: Applicant | D10: Project Name | E10: Type | F10: Total | G10: Federal | H10: State | I10: Local | J10: % of Total | L10: % of Fed. available funds
B11: 1 | C11: Human Services Coalition | D11: FISH Call Center Support | E11: Mobility Management | F11: 17140 | G11: =+F11*0.8 -> 13712 | H11: =+F11*0.1 -> 1714 | I11: =+F11*0.1 -> 1714 | J11: =+G11/$G$19 -> 0.1101415003 | K11: =+J11*$G$21 -> 10016.04776 | L11: =G11/$G$21 -> 0.1507840507
B12: 2 | C12: Tompkins County DSS | D12: Go2Work Taxi Voucher | E12: Operating Assistance | F12: =+G12*2 -> 15120 | G12: 7560 | I12: =+F12*0.5 -> 7560 | J12: 0.060725623 | K12: =+J12*$G$21 -> 5522.266704 | L12: =G12/$G$21 -> 0.08313356353
B13: 3 | C13: Challenge WorkForce Solutions | D13: Expanding Access to Employment and Community for Adults with Disabilities through Travel Training | E13: Mobility Management | F13: 19646 | G13: 7000 | H13: =6658+5988 -> 12646 | I13: 0 | J13: 0.0562274287 | K13: 5113.209911 | L13: 0.07697552178
B14: 4 | C14: GADABOUT | D14: Capital Project for New Computer Hardware | E14: Capital | F14: 12000 | G14: 9600 | H14: 1200 | I14: 1200 | J14: 0.07711190222 | K14: 7012.402164 | L14: 0.1055664299
B15: 5 | C15: GADABOUT | D15: JARC Operating Assistance for Work | E15: Operating Assistance | F15: 205138 | G15: 10000 | H15: 59982 | I15: =+F15-(G15+H15) -> 135156 | J15: 0.08032489815 | K15: 7304.585588 | L15: 0.1099650311
B16: 6 | C16: Ithaca Carshare | D16: Easy Access Low Income Carshare Memberships | E16: Operating Assistance | F16: =+G16*2 -> 91984 | G16: 45992 | H16: 0 | I16: =+G16 -> 45992 | J16: 0.3694302716 | K16: 33595.25004 | L16: 0.5057511711
B17: 7 | C17: Cornell Cooperative Extension | D17: Way2Go Travel Training Planning | E17: Mobility Management | F17: 8495 | G17: =+F17*0.8 -> 6796 | H17: =+F17*0.1 -> 849.5 | I17: =+H17 -> 849.5 | J17: 0.05458880078 | K17: 4964.196365 | L17: 0.07473223515
B18: 8 | C18: Cornell Cooperative Extension | D18: Way2Go Employer Education Program | E18: Mobility Management | F18: 29793 | G18: =+F18*0.8 -> 23834.4 | H18: =+F18*0.1 -> 2979.3 | I18: =+H18 -> 2979.3 | J18: 0.1914495752 | K18: 17410.04147 | L18: 0.2620950538
E19: TOTAL | F19: =SUM(F11:F18) -> 399316 | G19: =SUM(G11:G18) -> 124494.4 | J19: 1 | K19: 90938 | L19: 1.369003057
E21: Federal Funding Available | G21: 90938
G22: =G19-G21 -> 33556.4 | H22: = amount exceeding available funds

Sheet Sheet2

Sheet Sheet3
